bitfinex/quotes_ETHUSD_20241217
["timestamp","ask_amount","ask_price","bid_price","bid_amount"]
[1734430906307,2.14951855,4012.2,4011.2,1.6063]
[1734430906517,2.61902876,4012.3,4011.2,1.6063]
[1734430906518,2.61902876,4012.3,4011.3,0.55]
[1734430906715,0.85984445,4012.2,4011.3,0.55]
[1734430907918,1.89667321,4012.2,4011.3,0.55]
[1734430908117,8.3251672,4012.1,4011.3,0.55]
[1734430908336,0.85984445,4012.0,4011.3,0.55]
[1734430908848,8.3251672,4012.1,4011.3,0.55]
[1734430909931,0.86007177,4012.0,4011.3,0.55]
[1734430910456,1.6333,4012.0,4011.1,0.55]
[1734430910633,1.6333,4011.8,4010.6,1.5161]
[1734430910833,7.82175557,4011.6,4010.3,1.5161]
[1734430911022,3.78384268,4011.5,4010.3,1.5161]
[1734430911220,3.18737144,4011.4,4010.3,1.5161]
[1734430911457,0.86007119,4011.3,4010.3,1.5161]
[1734430911660,1.03682876,4011.4,4010.3,1.5161]
[1734430911825,1.20471275,4011.3,4010.3,1.5161]
[1734430912020,1.20471275,4011.3,4010.4,0.55]
[1734430913448,2.67012876,4011.5,4010.5,2.32473131]
[1734430913683,8.68233721,4011.4,4010.6,0.55]
[1734430913823,7.82175557,4011.4,4010.6,0.55]
[1734430914636,0.86066694,4011.3,4010.6,0.55]
[1734430917128,2.67012876,4011.2,4009.9,1.5161]
[1734430917324,2.67012876,4011.2,4009.0,1.03104557]
[1734430917325,1.03682876,4010.9,4009.5,1.5161]
[1734430917577,1.6333,4010.5,4009.0,2.32473131]
[1734430917722,0.86066694,4010.4,4009.1,1.5161]
[1734430918071,2.15185683,4010.4,4009.1,1.5161]
[1734430918225,2.67012876,4010.2,4009.1,1.5161]
[1734430918420,2.15196962,4010.1,4009.1,1.5161]
[1734430918627,10.31572251,4010.0,4008.4,1.5161]
[1734430918820,1.03682876,4009.7,4008.4,1.5161]
[1734430919134,11.01013911,4009.6,4007.8,1.64310092]
[1734430919371,1.03682876,4009.4,4007.8,1.5161]
[1734430919647,7.82175557,4009.4,4007.8,1.5161]
[1734430919960,2.49343833,4009.3,4007.8,1.5161]
[1734430920277,9.97217694,4009.2,4007.8,1.5161]
[1734430920483,2.15044399,4009.1,4007.8,1.5161]
[1734430920620,1.26423283,4009.0,4007.8,1.5161]
[1734430921519,1.26423283,4009.0,4007.3,2.32473131]
[1734430921520,10.24407636,4008.9,4007.3,1.552]
[1734430921624,9.38385557,4008.9,4007.3,1.552]
[1734430922079,0.85946278,4008.8,4007.3,1.552]
[1734430922279,9.38385557,4008.9,4007.3,1.552]
[1734430922419,7.82175557,4008.9,4007.3,1.552]
[1734430922627,2.34427556,4008.8,4007.3,1.552]
[1734430923538,2.34427556,4008.8,4007.4,0.55]
[1734430925085,9.38385557,4008.7,4007.3,1.552]
[1734430925252,1.5621,4008.6,4006.5,1.552]
[1734430925539,1.24907624,4008.5,4006.5,4.552]
[1734430926224,7.82175557,4008.3,4006.6,0.55]
[1734430926431,1.5621,4008.2,4006.6,0.55]
[1734430926653,1.5621,4008.2,4006.5,1.552]
[1734430928076,1.5621,4008.2,4006.5,0.55]
[1734430928257,7.82175557,4008.0,4006.5,0.55]
[1734430928855,1.617,4007.9,4006.5,0.55]
[1734430931558,7.82175557,4007.8,4006.4,0.0853]
[1734430931763,1.617,4007.7,4006.4,0.0853]
[1734430931965,7.82175557,4007.8,4006.4,0.0853]
[1734430931966,1.617,4007.5,4006.4,0.0853]
[1734430932402,7.82175557,4007.8,4006.5,1.5275]
[1734430932615,7.82175557,4007.8,4006.9,1.5275]
[1734430932817,7.82175557,4007.8,4007.0,0.55]
[1734430932961,1.617,4007.7,4006.5,0.55]
[1734430933316,1.617,4007.5,4006.4,0.0853]
[1734430934014,1.617,4007.5,4006.5,5.32473131]
[1734430934561,1.617,4007.5,4006.7,1.5275]
[1734430934763,7.82175557,4007.8,4007.0,3.55]
[1734430935013,1.617,4008.1,4007.1,0.33688368]
[1734430935168,1.617,4008.1,4007.0,3.55]
[1734430935977,1.617,4008.1,4007.2,0.55]
[1734430936381,0.1617,4008.0,4006.8,0.55]
[1734430936680,1.617,4008.1,4007.0,0.55]
[1734430936964,1.617,4008.1,4007.0,3.55]
[1734430938181,7.82175557,4008.1,4006.8,0.55]
[1734430938548,1.6041,4008.0,4006.4,1.6027]
[1734430939843,1.6041,4008.0,4006.5,0.55]
[1734430940033,0.94258556,4007.9,4006.5,0.55]
[1734430940237,1.6041,4007.8,4006.5,0.55]
[1734430940781,1.6041,4007.8,4006.5,2.87473131]
[1734430941286,9.42585557,4007.8,4006.7,0.55]
[1734430944222,1.6041,4007.8,4006.7,0.55]
[1734430944381,1.85876856,4007.8,4006.7,0.55]
[1734430945231,1.6041,4007.8,4006.7,0.55]
[1734430945528,1.6041,4007.8,4006.7,0.88688368]
[1734430945869,1.6041,4007.8,4007.1,1.5174]
[1734430946156,1.6041,4007.8,4007.2,0.55]
[1734430947463,7.82175557,4008.3,4007.2,0.55]
[1734430947464,1.6041,4008.2,4007.2,0.88688368]
[1734430947765,1.6041,4008.2,4007.4,3.55]
[1734430948574,9.42585557,4009.0,4007.8,0.55]
[1734430951025,1.64,4008.9,4007.4,3.55]
[1734430951222,1.64,4008.9,4007.2,0.55]
[1734430951719,1.64,4008.9,4007.4,3.55]
[1734430952632,1.64,4008.9,4007.4,3.88688368]
[1734430952971,0.94617556,4008.8,4007.5,0.33688368]
[1734430953121,1.64,4008.9,4007.6,0.55]
[1734430953324,9.46175557,4008.9,4007.6,0.55]
[1734430953640,1.64,4008.9,4007.7,0.55]
[1734430953820,1.64,4008.9,4007.9,0.55]
[1734430956031,1.64,4008.9,4007.5,0.55]
[1734430956327,1.64,4008.7,4007.4,4.5488]
[1734430956730,1.64,4008.7,4007.5,0.33688368]
[1734430956974,1.64,4008.7,4007.3,2.32473131]
[1734430957160,1.64,4008.7,4007.0,1.5488]
[1734430957527,0.164,4008.8,4006.9,2.95962013]
[1734430957528,0.85833348,4008.6,4006.9,2.95962013]
[1734430957732,1.64,4008.4,4006.9,2.32473131]
[1734430958035,1.64,4008.4,4006.6,1.5488]
[1734430958773,1.64,4008.0,4006.6,1.5488]
[1734430958945,1.64,4008.0,4006.7,0.55]
[1734430961548,0.86093023,4007.9,4006.7,0.55]
[1734430961747,1.13595146,4007.8,4006.7,0.55]
[1734430962765,2.15478626,4007.7,4006.7,0.55]
[1734430963235,1.64,4007.6,4006.7,0.55]
[1734430963633,0.86258491,4007.5,4006.7,0.55]
[1734430964660,0.86258491,4007.4,4006.7,0.55]
[1734430965002,1.03682876,4007.5,4006.7,0.55]
[1734430965294,0.86314079,4007.4,4006.7,0.55]
[1734430965495,1.03682876,4007.5,4006.7,0.55]
[1734430965702,2.15840975,4007.4,4006.7,0.55]
[1734430966016,0.86336444,4007.3,4006.7,0.55]
[1734430966307,1.03682876,4007.5,4006.7,0.55]
[1734430966461,2.15844351,4007.4,4006.7,0.55]
[1734430966660,1.03682876,4007.5,4006.7,0.55]
[1734430966904,0.86337706,4007.4,4006.7,0.55]
[1734430967087,1.03682876,4007.5,4006.7,0.55]
[1734430967405,0.86339097,4007.4,4006.7,0.55]
[1734430967555,1.03682876,4007.5,4006.7,0.55]
[1734430967761,0.86342589,4007.4,4006.7,0.88688368]
[1734430968005,1.03682876,4007.5,4006.7,0.88688368]
[1734430968163,1.03682876,4007.5,4007.0,0.55]
[1734430968164,0.86342626,4007.4,4007.0,0.55]
[1734430968512,2.67682876,4007.6,4007.0,0.55]
[1734430968719,2.67682876,4007.6,4007.3,2.32473131]
[1734430968720,2.15861207,4007.5,4007.3,2.32473131]
[1734430968853,1.03682876,4007.8,4007.4,14.64033182]
[1734430969063,0.86340081,4007.7,4007.4,0.88688368]
[1734430969372,1.03682876,4008.0,4007.4,0.88688368]
[1734430969569,0.86338382,4007.9,4007.4,0.88688368]
[1734430969760,1.03682876,4008.0,4007.4,0.88688368]
[1734430969960,0.86337634,4007.9,4007.6,0.55]
[1734430970158,1.55524314,4008.2,4007.5,3.0]
[1734430970159,1.03682876,4008.3,4008.0,3.55]
[1734430970411,1.03682876,4008.5,4008.0,3.55]
[1734430970553,0.86324612,4008.4,4008.0,3.55]
[1734430970918,0.86324612,4008.4,4008.0,3.88688368]
[1734430971122,1.03682876,4008.8,4008.4,1.6069]
[1734430971324,1.03682876,4009.0,4008.5,0.55]
[1734430971458,0.86296186,4008.9,4008.5,0.55]
[1734430972087,1.03682876,4009.1,4008.5,0.55]
[1734430972293,1.89949898,4009.1,4008.5,0.55]
[1734430972522,0.86267022,4009.0,4008.5,0.55]
[1734430972670,1.03682876,4009.1,4008.5,0.55]
[1734430973188,0.86267029,4009.2,4008.5,0.55]
[1734430973189,0.86267029,4009.0,4008.5,0.55]
[1734430973394,1.03682876,4009.2,4008.5,0.55]
[1734430973712,1.89928829,4009.2,4008.5,0.55]
[1734430973878,1.89928829,4009.2,4008.8,0.55]
[1734430973879,0.86245953,4009.2,4008.8,0.55]
[1734430974215,2.07365752,4009.7,4008.8,0.55]
[1734430974216,1.5648,4009.8,4009.2,3.55]
[1734430975815,1.82496288,4009.8,4009.2,0.55]
[1734430976073,1.82496288,4009.8,4008.5,1.6069]
[1734430976074,0.86149282,4009.7,4008.8,3.55]
[1734430976233,1.82496288,4009.8,4008.8,3.55]
[1734430976383,1.5648,4009.8,4008.8,3.55]
[1734430979027,1.5648,4009.8,4008.5,0.55]
[1734430979028,0.86085291,4009.7,4008.5,0.55]
[1734430979183,1.5648,4009.8,4008.5,0.55]
[1734430979537,0.86074027,4009.7,4008.5,0.88688368]
[1734430979685,0.86074027,4009.7,4008.8,0.55]
[1734430979907,1.5648,4009.8,4009.0,0.55]
[1734430980210,1.6049,4010.1,4009.2,3.55]
[1734430980607,1.03682876,4010.4,4009.2,3.88688368]
[1734430980608,2.64172876,4010.4,4009.2,3.88688368]
[1734430980809,2.64172876,4010.4,4009.6,2.1838]
[1734430981016,1.6049,4010.4,4009.6,5.1838]
[1734430981600,1.6049,4010.4,4009.6,3.55]
[1734430981799,2.65124843,4010.4,4009.4,0.55]
[1734430982051,1.6049,4010.4,4009.5,2.32473131]
[1734430982216,1.6049,4010.4,4009.6,3.55]
[1734430982809,1.6049,4010.4,4009.4,0.55]
[1734430983563,1.6049,4010.2,4008.7,2.32473131]
[1734430983747,1.6049,4010.2,4008.5,1.6338]
[1734430983748,0.85975228,4010.1,4008.5,1.6338]
[1734430983945,1.6049,4009.9,4008.5,1.6338]
[1734430984532,9.42665557,4009.9,4008.5,1.6338]
[1734430984841,7.82175557,4009.9,4008.5,1.6338]
[1734430985008,2.46463317,4009.8,4008.6,0.55]
[1734430985203,1.6049,4009.8,4008.6,0.55]
[1734430985417,1.06531424,4009.7,4008.6,0.55]
[1734430985834,1.06531424,4009.7,4008.8,0.55]
[1734430992149,1.06531424,4009.7,4008.6,0.55]
[1734430993679,1.6049,4009.6,4008.5,0.55]
[1734430994746,1.6049,4009.6,4008.4,3.0]
[1734430994974,0.26702142,4009.5,4008.4,3.0]
[1734430995513,1.6049,4009.4,4008.4,3.0]
[1734430998579,1.6049,4009.4,4008.4,0.33688368]
[1734430998761,1.6049,4009.4,4008.3,2.32473131]
[1734430998762,1.6049,4009.4,4007.6,1.5212]
[1734430998958,1.5485,4009.3,4007.7,0.33688368]
[1734430999218,0.9637277,4009.2,4007.7,0.33688368]
[1734430999706,1.5485,4009.1,4007.7,0.33688368]
[1734431000308,1.5485,4009.1,4007.8,0.55]
[1734431000594,1.5485,4009.0,4007.8,0.33688368]
[1734431000796,1.03339833,4008.9,4007.8,0.33688368]
[1734431001210,1.5485,4008.8,4007.8,0.33688368]
[1734431001373,1.5485,4008.7,4007.2,1.5212]
[1734431002063,1.5485,4008.7,4007.1,0.33688368]
[1734431002862,1.5485,4008.5,4007.1,0.33688368]
[1734431003062,1.5485,4008.2,4007.1,0.33688368]
[1734431004357,1.5485,4008.2,4006.8,1.5212]
[1734431004597,1.5485,4008.2,4006.8,1.85808368]
[1734431007573,1.5485,4008.0,4006.8,1.85808368]
[1734431010070,1.5485,4008.0,4006.8,1.5212]
[1734431010269,1.04070843,4007.9,4006.8,1.5212]
[1734431010671,1.6616,4007.8,4006.6,0.29800514]
[1734431011033,1.6616,4007.8,4006.6,0.33688368]
[1734431011241,1.6616,4007.8,4006.7,0.33688368]
[1734431011412,1.6616,4007.8,4006.7,3.63488882]
[1734431013230,1.6616,4007.8,4007.0,2.32473131]
[1734431013384,1.6616,4008.2,4007.1,4.18488882]
[1734431013807,1.6616,4008.2,4007.1,1.18488882]
[1734431014211,1.6616,4008.2,4007.1,0.88688368]
[1734431014545,1.82776,4008.2,4007.1,0.33688368]
[1734431014752,1.82776,4008.2,4006.8,1.6137]
[1734431015046,1.82776,4008.2,4006.5,0.29800514]
[1734431015047,1.82776,4008.2,4006.5,2.24858882]
[1734431015247,1.6616,4008.1,4006.5,2.24858882]
[1734431015550,1.6616,4007.9,4006.5,1.95058368]
[1734431015855,1.6616,4007.8,4006.5,1.95058368]
[1734431016266,1.6616,4007.8,4006.5,0.33688368]
[1734431016429,1.6616,4007.8,4006.4,0.0853]
[1734431018723,1.6616,4007.8,4006.4,0.42218368]
[1734431019044,1.6616,4007.6,4006.4,0.42218368]
[1734431019244,1.6616,4007.6,4006.5,0.63488882]
[1734431019452,1.6616,4007.6,4006.4,0.0853]
[1734431021849,1.6616,4007.6,4006.4,0.42218368]
[1734431022061,1.6616,4007.6,4006.5,0.33688368]
[1734431023975,1.6616,4007.6,4006.4,0.0853]
[1734431024837,1.6616,4007.6,4006.5,0.88688368]
[1734431025040,1.6616,4007.6,4006.9,0.55]
[1734431025574,1.6616,4007.6,4006.8,0.55]
[1734431026436,1.82776,4007.6,4006.4,0.0853]
[1734431027591,1.6616,4007.6,4006.4,0.0853]
[1734431027864,1.6616,4007.6,4006.5,0.55]
[1734431028052,1.6616,4007.6,4006.5,1.18488882]
[1734431028265,1.6616,4007.6,4006.7,0.55]
[1734431028577,1.6616,4007.6,4006.5,0.33688368]
[1734431028796,0.16616,4007.5,4006.4,0.0853]
[1734431028952,1.6653,4007.4,4006.4,0.0853]
[1734431029782,1.6653,4007.4,4006.5,2.32871142]
[1734431030249,1.6653,4007.4,4006.5,5.32871142]
[1734431030908,1.6653,4007.4,4006.5,2.32871142]
[1734431032689,1.6653,4007.4,4006.4,0.0853]
[1734431032867,1.83183,4007.4,4006.4,0.0853]
[1734431040457,9.65358557,4007.4,4006.4,0.0853]
[1734431040713,1.6611,4007.3,4006.4,0.0853]
[1734431041225,7.82175557,4007.2,4006.4,0.0853]
[1734431041423,1.6611,4006.8,4006.4,0.0853]
[1734431041601,1.05196843,4006.7,4006.4,0.0853]
[1734431041796,1.6611,4006.6,4006.4,0.0853]
[1734431043298,2.52364695,4006.5,4006.4,0.0853]
[1734431044234,3.81777131,4006.5,4006.4,0.0853]
[1734431044386,3.81777131,4006.5,4006.4,0.42218368]
[1734431044387,1.6611,4006.5,4006.4,0.42218368]
[1734431045320,1.6611,4006.5,4006.4,0.0853]
[1734431046332,8.85858433,4007.1,4006.4,0.0853]
[1734431046526,3.81862763,4007.0,4006.4,0.0853]
[1734431046732,1.6611,4007.0,4006.4,0.0853]
[1734431047443,1.6611,4007.0,4006.4,0.42218368]
[1734431047444,0.86314779,4006.9,4006.4,0.42218368]
[1734431047591,0.86314779,4006.9,4006.5,0.33688368]
[1734431047991,1.6611,4007.0,4006.5,0.33688368]
[1734431048187,1.6611,4007.0,4006.4,0.0853]
[1734431048188,0.86322479,4006.9,4006.4,0.0853]
[1734431048597,1.6611,4007.0,4006.4,0.42218368]
[1734431048846,1.6611,4007.0,4006.5,3.0]
[1734431049314,1.6611,4007.0,4006.4,2.41401142]
[1734431049315,1.6611,4007.0,4006.4,5.41401142]
[1734431050100,1.6611,4007.0,4006.4,2.41401142]
[1734431050429,1.6611,4007.0,4006.4,5.41401142]
[1734431050828,1.6611,4007.0,4006.4,2.41401142]
[1734431051276,1.6611,4007.0,4006.4,0.0853]
[1734431051459,0.26979288,4006.9,4006.4,0.0853]
[1734431051664,1.6311,4006.8,4006.4,0.0853]
[1734431052044,0.26979288,4006.9,4006.4,0.0853]
[1734431052045,0.86333041,4006.7,4006.4,0.0853]
[1734431052366,1.30662164,4006.9,4006.4,0.0853]
[1734431052367,2.49439573,4006.6,4006.4,0.0853]
[1734431052562,1.6311,4006.7,4006.4,0.0853]
[1734431052763,4.16279387,4006.6,4006.4,0.0853]
[1734431052976,3.78935425,4006.5,4006.4,0.0853]
[1734431054256,7.82175557,4006.2,4005.7,0.167293]
[1734431054565,10.49663278,4005.8,4005.7,0.167293]
[1734431054868,11.6110158,4005.8,4005.7,0.167293]
[1734431055052,13.13743941,4005.8,4005.7,0.167293]
[1734431055256,14.18127878,4005.8,4005.7,0.167293]
[1734431056042,13.13743941,4005.8,4005.7,0.167293]
[1734431056337,14.18037789,4005.8,4005.7,0.167293]
[1734431056943,13.13602648,4005.8,4005.7,0.167293]
[1734431057158,11.84254327,4005.8,4005.7,0.167293]
[1734431058033,10.97927918,4005.8,4005.7,0.167293]
[1734431059633,11.8409656,4005.8,4005.7,0.167293]
[1734431060084,10.97927918,4005.8,4005.7,0.167293]
[1734431061794,1.6311,4005.8,4005.7,0.167293]
[1734431062091,1.5299,4006.1,4005.7,0.167293]
[1734431063752,9.35165557,4005.8,4005.7,0.167293]
[1734431067893,7.82175557,4005.7,4004.7,0.29800514]
[1734431068396,7.82175557,4005.6,4004.7,0.29800514]
[1734431068579,8.75692113,4005.6,4004.7,0.29800514]
[1734431068785,0.93516556,4005.6,4004.7,0.29800514]
[1734431068982,7.82175557,4005.4,4004.7,0.29800514]
[1734431069184,7.82175557,4005.5,4004.7,0.29800514]
[1734431069489,1.5299,4005.4,4004.2,0.29800514]
[1734431069693,10.38033768,4005.4,4004.2,0.29800514]
[1734431069897,7.82175557,4005.3,4004.2,0.29800514]
[1734431070148,1.5299,4005.2,4004.2,0.29800514]
[1734431071202,1.5299,4005.2,4003.9,1.6154]
[1734431072095,1.5299,4005.2,4003.8,0.29800514]
[1734431072290,2.07162059,4005.4,4003.9,0.29800514]
[1734431072291,9.35165557,4005.0,4003.9,0.29800514]
[1734431072736,1.5299,4004.9,4003.9,0.29800514]
[1734431075321,1.5299,4004.9,4003.9,2.62671656]
[1734431075630,1.5299,4004.9,4004.0,3.29800514]
[1734431075942,1.5299,4004.9,4003.6,1.6154]
[1734431076283,1.5299,4004.9,4003.7,0.29800514]
[1734431076284,1.04939832,4004.8,4003.7,0.29800514]
[1734431076763,8.87115389,4004.8,4003.7,0.29800514]
[1734431077545,8.87115389,4004.8,4003.6,1.6154]
[1734431079402,8.87115389,4004.8,4003.9,1.6154]
[1734431079403,7.82175557,4004.8,4003.9,1.6154]
[1734431079630,1.5299,4004.9,4003.9,4.6154]
[1734431081019,1.5299,4004.9,4003.9,1.6154]
[1734431082362,1.5299,4005.5,4003.9,1.6154]
[1734431082653,7.82175557,4005.4,4003.9,1.6154]
[1734431082855,0.93516556,4005.3,4003.9,1.6154]
[1734431083044,0.93516556,4005.3,4004.1,3.0]
[1734431083244,0.93516556,4005.3,4003.9,1.6154]
[1734431083758,0.93516556,4005.3,4004.0,0.55]
[1734431085024,0.93516556,4005.3,4004.2,0.55]
[1734431085360,7.82175557,4005.4,4004.3,0.29800514]
[1734431085576,1.5299,4005.5,4004.5,1.531]
[1734431086066,7.82175557,4005.6,4004.8,0.55]
[1734431086860,7.82175557,4005.6,4004.7,1.531]
[1734431087362,7.82175557,4005.6,4004.8,0.55]
[1734431087738,1.5951,4005.8,4004.8,0.55]
[1734431088116,1.5951,4006.2,4004.8,0.55]
[1734431088375,0.93956305,4006.1,4004.9,1.531]
[1734431088723,0.93956305,4006.1,4005.0,0.55]
[1734431089166,1.5951,4006.2,4005.0,3.55]
[1734431089325,1.5951,4006.2,4005.1,1.531]
[1734431090235,1.5951,4006.2,4005.2,0.55]
[1734431090437,7.80053049,4006.3,4005.2,0.55]
[1734431090679,7.80053049,4006.3,4005.3,2.32871142]
[1734431090980,7.80053049,4006.8,4005.8,4.531]
[1734431091474,7.80053049,4006.8,4006.2,2.32871142]
[1734431091661,9.39563049,4007.2,4006.6,2.32871142]
[1734431091862,10.33519354,4007.2,4006.6,2.32871142]
[1734431092169,8.74009354,4007.2,4006.6,2.32871142]
[1734431092586,7.80053049,4007.2,4006.6,2.32871142]
[1734431094034,1.5951,4007.6,4006.6,2.32871142]
[1734431094697,1.5951,4007.6,4006.7,1.531]
[1734431095006,1.5951,4007.6,4006.7,4.531]
[1734431096381,1.5951,4007.6,4006.7,1.531]
[1734431096579,1.5951,4007.6,4006.8,0.55]
[1734431096885,9.39563049,4008.0,4007.0,2.32871142]
[1734431098070,9.39563049,4008.0,4006.7,1.531]
[1734431098561,0.85987704,4007.9,4006.7,1.531]
[1734431098891,1.1298446,4007.8,4006.7,4.531]
[1734431099095,1.1298446,4007.8,4006.8,0.55]
[1734431100402,1.1298446,4007.8,4007.0,2.32871142]
[1734431100694,9.39573049,4008.4,4007.4,2.32871142]
[1734431101716,9.39573049,4008.4,4007.5,4.5308]
[1734431101922,1.5952,4008.8,4007.6,0.55]
[1734431103134,1.5952,4008.8,4007.9,1.5308]
[1734431103295,7.80053049,4009.1,4007.9,4.5308]
[1734431103643,1.0438669,4009.0,4007.9,4.5308]
[1734431106797,8.84439739,4009.0,4007.9,4.5308]
[1734431107353,8.84439739,4009.0,4008.3,1.5308]
[1734431107552,8.84439739,4009.0,4008.3,4.5308]
[1734431108135,1.0438669,4009.0,4008.3,4.5308]
[1734431108349,1.5952,4009.7,4008.3,4.5308]
[1734431109066,1.5952,4009.7,4008.6,2.32871142]
[1734431109281,9.39573049,4009.7,4009.0,2.32871142]
[1734431109479,7.80053049,4009.7,4009.0,2.32871142]
[1734431109977,7.80053049,4009.7,4008.7,3.0]
[1734431109978,1.5952,4009.6,4008.7,3.0]
[1734431110277,1.5952,4009.3,4008.0,1.5308]
[1734431111399,1.5952,4009.1,4007.4,4.5308]
[1734431112123,7.80053049,4008.8,4007.4,1.5308]
[1734431112264,11.89041049,4008.6,4007.1,1.5308]
[1734431112755,9.39573049,4008.6,4007.1,1.5308]
[1734431114427,9.39573049,4008.6,4007.2,0.55]
[1734431115793,7.80053049,4008.5,4007.2,0.55]
[1734431116197,7.80053049,4008.5,4007.4,2.32871142]
[1734431116355,0.93957305,4008.4,4007.4,2.32871142]
[1734431117162,0.93957305,4008.4,4007.6,1.2164]
[1734431117362,7.80053049,4008.5,4007.7,0.55]
[1734431118669,1.41492,4009.0,4007.7,0.55]
[1734431119503,1.41492,4009.0,4007.6,1.2164]
[1734431120303,1.2554,4008.8,4007.1,1.2164]
[1734431120605,1.2554,4008.7,4007.1,1.2164]
[1734431120821,2.62017,4008.6,4007.1,1.2164]
[1734431120971,1.2554,4008.5,4007.1,1.2164]
[1734431121174,1.2554,4008.5,4006.4,0.29800514]
[1734431121175,7.80053049,4008.3,4006.7,1.2164]
[1734431121409,9.05593049,4008.2,4006.7,1.2164]
[1734431123074,1.2554,4008.0,4006.4,1.2164]
[1734431123267,7.80053049,4007.7,4005.9,1.2164]
[1734431123469,7.80053049,4007.4,4005.9,1.2164]
[1734431125306,7.80053049,4007.4,4005.9,4.2164]
[1734431126306,7.80053049,4007.4,4006.2,2.32871142]
[1734431127591,7.80053049,4007.3,4006.2,2.32871142]
[1734431127930,7.80053049,4007.3,4006.3,3.55]
[1734431128291,8.70612354,4007.3,4006.2,2.32871142]
[1734431129829,8.70612354,4007.3,4006.0,0.55]
[1734431130606,7.80053049,4007.2,4006.0,0.55]
[1734431131007,7.80053049,4007.2,4005.9,4.2164]
[1734431133404,7.80053049,4007.2,4006.2,2.32871142]
[1734431133612,0.90559305,4007.3,4006.3,3.55]
[1734431134612,0.90559305,4007.3,4006.4,1.1996]
[1734431134927,9.05593049,4007.6,4006.4,1.1996]
[1734431135340,9.05593049,4007.6,4006.6,2.32871142]
[1734431135518,9.05593049,4007.6,4006.6,5.32871142]
[1734431136698,1.2554,4007.6,4006.6,5.32871142]
[1734431137399,1.2554,4007.6,4006.5,0.55]
[1734431139417,7.80053049,4007.9,4005.9,0.28308622]
[1734431139418,7.80053049,4007.9,4006.7,3.55]
[1734431139736,8.95827397,4007.9,4006.7,3.55]
[1734431139905,7.80053049,4007.9,4006.7,3.55]
[1734431141982,0.86179794,4007.8,4006.7,3.55]
[1734431142126,0.86179794,4007.8,4006.7,3.0]
[1734431142569,8.84346897,4007.9,4006.7,3.0]
[1734431142731,9.9552067,4007.8,4006.7,3.0]
[1734431143061,1.21664452,4007.7,4006.7,3.0]
[1734431144567,1.21664452,4007.7,4006.6,1.1996]
[1734431145879,9.01717501,4007.7,4006.6,1.1996]
[1734431148230,7.80053049,4007.7,4006.7,0.55]
[1734431148426,1.1683,4008.0,4006.9,3.7896]
[1734431148427,8.96883049,4008.0,4006.9,3.7896]
[1734431149162,1.1683,4008.0,4006.9,3.7896]
[1734431149535,7.80053049,4008.2,4007.2,2.87871142]
[1734431149736,0.7755,4008.4,4007.4,0.55]
[1734431149948,8.96900897,4008.6,4007.5,0.8095]
[1734431150154,1.99283885,4008.5,4007.6,2.87871142]
[1734431150386,1.56566582,4008.9,4008.0,2.32871142]
[1734431150387,1.04293848,4008.9,4008.0,2.32871142]
[1734431150671,0.93502,4009.0,4007.7,0.8095]
[1734431150672,0.93502,4009.0,4008.1,3.8095]
[1734431150855,0.93502,4009.0,4008.1,0.8095]
[1734431151659,0.86150837,4008.9,4007.8,0.8095]
[1734431151832,0.93502,4009.0,4007.8,0.8095]
[1734431152045,1.05932513,4008.9,4007.8,0.8095]
[1734431152246,0.19779585,4008.9,4007.8,0.8095]
[1734431154235,0.19779585,4008.9,4007.8,0.7595]
[1734431154661,7.99832634,4008.9,4007.8,1.04258622]
[1734431156251,7.99832634,4008.9,4007.8,0.7595]
[1734431156468,0.89333463,4008.8,4007.8,0.7595]
[1734431156887,0.89333463,4008.8,4007.0,1.31413179]
[1734431157066,0.7755,4008.7,4006.7,3.35975699]
[1734431157251,1.04293848,4008.6,4006.8,0.8095]
[1734431157453,3.19672576,4008.5,4006.8,0.8095]
[1734431157673,9.21583456,4008.4,4006.8,0.8095]
[1734431157957,8.35431965,4008.4,4006.8,0.8095]
[1734431158385,8.35431965,4008.4,4006.9,0.55]
[1734431158603,0.7755,4008.2,4006.9,0.55]
[1734431159555,0.86165184,4008.1,4006.8,0.8095]
[1734431159903,1.04806208,4008.0,4006.8,0.8095]
[1734431160053,1.04806208,4008.0,4006.8,3.8095]
[1734431160258,1.04806208,4008.0,4006.8,0.8095]
[1734431160971,0.86165234,4007.9,4006.8,0.8095]
[1734431161385,1.04806208,4008.0,4006.8,0.8095]
[1734431161588,0.28665006,4007.9,4006.8,3.8095]
[1734431163252,0.7755,4008.2,4007.2,0.8101]
[1734431163518,7.80053049,4008.3,4007.2,4.09318622]
[1734431163673,1.04293848,4008.6,4007.7,0.8101]
[1734431163989,9.63446897,4008.9,4007.7,0.8101]
[1734431164226,0.86142415,4008.8,4007.7,0.8101]
[1734431164374,1.91101346,4008.8,4007.7,0.8101]
[1734431164577,1.91101346,4008.8,4007.6,3.0]
[1734431164578,1.04293848,4009.0,4008.3,2.32871142]
[1734431164818,1.04293848,4009.3,4008.4,0.8101]
[1734431165013,1.04293848,4009.5,4008.5,0.8101]
[1734431165218,1.04293848,4009.7,4008.7,5.32871142]
[1734431165511,3.27279951,4009.7,4008.7,2.32871142]
[1734431165812,1.12001348,4009.7,4008.7,2.32871142]
[1734431166382,0.86087781,4009.6,4008.7,2.32871142]
[1734431166601,1.12001348,4009.7,4008.7,2.32871142]
[1734431166855,0.86085517,4009.6,4008.7,2.32871142]
[1734431166991,1.08243376,4009.5,4008.7,2.32871142]
[1734431167317,0.791,4009.4,4008.5,0.8101]
[1734431169086,0.791,4009.4,4008.2,0.8101]
[1734431169087,1.04293848,4009.3,4008.2,0.8101]
[1734431169333,1.2909223,4009.2,4008.2,0.8101]
[1734431169621,0.86056752,4009.1,4008.2,0.8101]
[1734431169816,7.99088109,4009.0,4008.2,0.8101]
[1734431170840,0.791,4008.9,4007.4,0.8101]
[1734431170987,0.791,4008.9,4007.5,0.55]